bitfinex/quotes_SOLUSD_20250228
["timestamp","ask_amount","ask_price","bid_price","bid_amount"]
[1740768088669,55.20455723,147.11,147.02,82.97]
[1740768089070,0.14216157,147.09,147.02,2.0]
[1740768089277,1.6104,147.08,147.02,2.063]
[1740768090079,7.48216157,147.07,147.02,0.063]
[1740768090463,7.34,147.07,147.02,2.063]
[1740768090659,0.14216157,147.06,147.02,0.063]
[1740768091984,7.34,147.07,147.02,0.063]
[1740768092179,7.34,147.07,147.03,2.0]
[1740768094270,0.14216157,147.06,147.02,0.063]
[1740768094466,0.14216157,147.06,146.98,2.0]
[1740768094686,55.20455723,147.06,146.98,2.0]
[1740768094878,55.20455723,147.06,146.97,2.0]
[1740768095078,0.14216157,147.04,146.96,2.0]
[1740768096295,0.14216157,147.04,146.97,2.0]
[1740768096591,0.14216157,147.04,146.96,2.0]
[1740768096966,0.14216157,147.04,146.98,2.0]
[1740768097172,0.14216157,147.04,146.99,2.0]
[1740768097896,0.14216157,147.04,146.96,2.0]
[1740768098062,0.14216157,147.04,146.95,83.033]
[1740768098267,55.20455723,147.04,146.96,2.0]
[1740768098480,55.20455723,147.04,146.95,83.033]
[1740768098892,55.20455723,147.04,146.96,2.0]
[1740768099393,55.20455723,147.04,146.95,81.033]
[1740768099592,55.20455723,147.04,146.95,83.033]
[1740768100489,55.20455723,147.04,146.96,2.0]
[1740768100897,55.20455723,147.04,146.97,2.0]
[1740768101069,55.20455723,147.04,146.98,2.0]
[1740768101272,55.20455723,147.04,146.97,2.0]
[1740768101689,55.20455723,147.04,146.98,2.0]
[1740768101887,55.20455723,147.04,146.97,2.0]
[1740768102898,55.20455723,147.04,146.96,2.0]
[1740768103089,55.20455723,147.04,146.97,2.0]
[1740768104399,55.20455723,147.04,146.98,2.0]
[1740768104590,55.20455723,147.04,146.97,2.0]
[1740768104991,55.20455723,147.04,146.95,81.033]
[1740768105299,57.20455723,147.04,146.95,81.033]
[1740768105693,6.1266,147.05,146.97,2.0]
[1740768106102,0.14216157,147.04,146.97,2.0]
[1740768106295,0.14216157,147.04,146.98,2.0]
[1740768106495,0.14216157,147.04,146.97,2.0]
[1740768106692,0.14216157,147.04,146.98,2.0]
[1740768106693,55.06239566,147.04,146.98,2.0]
[1740768106890,55.06239566,147.04,146.95,81.033]
[1740768106891,55.06239566,147.04,147.0,2.0]
[1740768107389,55.06239566,147.04,146.98,2.0]
[1740768107904,55.06239566,147.04,146.99,2.0]
[1740768108109,6.1266,147.05,146.99,2.0]
[1740768108292,114.62,147.06,147.02,2.0]
[1740768108808,1.6104,147.08,147.03,2.0]
[1740768110302,1.6104,147.08,147.02,2.0]
[1740768110477,0.14216157,147.07,147.01,2.0]
[1740768110889,0.14216157,147.07,146.99,2.0]
[1740768111085,55.20455723,147.07,146.99,82.97]
[1740768111294,55.20455723,147.07,147.0,2.0]
[1740768112800,55.20455723,147.07,146.99,82.97]
[1740768113004,55.20455723,147.07,147.02,0.063]
[1740768115383,2.0,147.07,146.96,2.0]
[1740768116222,0.14216157,147.07,146.98,2.0]
[1740768117302,1.6104,147.08,147.0,2.0]
[1740768117726,0.14216157,147.07,147.01,2.0]
[1740768118235,1.6104,147.08,147.01,2.0]
[1740768118596,0.14216157,147.07,147.01,2.0]
[1740768119097,1.6104,147.08,147.01,2.0]
[1740768119711,1.6104,147.08,147.02,2.0]
[1740768120929,1.6104,147.08,147.01,2.0]
[1740768121130,0.14216157,147.07,147.01,2.0]
[1740768121833,0.14216157,147.07,146.96,312.0]
[1740768121834,1.6104,147.08,147.02,2.0]
[1740768122733,0.03,147.09,147.05,2.0]
[1740768123237,0.03,147.09,147.02,147.90361006]
[1740768123444,55.09239566,147.09,147.02,80.97]
[1740768123739,0.14216157,147.08,147.02,80.97]
[1740768123935,0.14216157,147.08,147.02,82.97]
[1740768124133,55.09239566,147.09,147.04,2.0]
[1740768124641,0.03,147.09,147.07,2.0]
[1740768124823,0.03,147.09,147.08,2.0]
[1740768125740,0.03,147.09,147.07,80.97]
[1740768125927,0.03,147.09,147.06,2.0]
[1740768126239,0.03,147.09,147.07,2.0]
[1740768126639,0.03,147.09,147.06,2.0]
[1740768126814,0.03,147.09,147.07,2.0]
[1740768127019,0.03,147.09,147.08,2.0]
[1740768127342,0.03,147.09,147.08,149.90361006]
[1740768128220,0.03,147.09,147.08,147.90361006]
[1740768128429,0.03,147.09,147.08,149.90361006]
[1740768128634,0.03,147.09,147.08,147.90361006]
[1740768129143,0.03,147.09,147.08,149.90361006]
[1740768130741,0.03,147.09,147.08,147.90361006]
[1740768131335,0.03,147.09,147.08,122.15751006]
[1740768131713,0.03,147.09,147.06,2.0]
[1740768133322,0.03,147.09,147.07,2.0]
[1740768133724,0.03,147.09,147.05,57.2239]
[1740768133923,0.03,147.09,147.05,55.2239]
[1740768135323,0.03,147.09,147.0,2.0]
[1740768135528,0.14216157,147.07,147.0,53.8979]
[1740768135743,0.14216157,147.07,146.97,55.8979]
[1740768135744,0.14216157,147.05,146.97,55.8979]
[1740768136057,0.14216157,147.05,147.02,0.0099]
[1740768137334,0.14216157,147.03,146.95,0.063]
[1740768137537,0.14216157,146.97,146.95,0.063]
[1740768137724,176.90455723,146.96,146.95,0.063]
[1740768137931,124.74464218,146.96,146.95,0.063]
[1740768139247,124.60248061,146.96,146.95,0.063]
[1740768139450,55.06239566,146.99,146.95,0.063]
[1740768139760,6.49636157,147.0,146.95,0.063]
[1740768139924,55.20455723,146.99,146.95,0.063]
[1740768141929,114.62,147.04,146.98,2.0]
[1740768142449,114.62,147.04,146.97,2.0]
[1740768142644,114.62,147.04,146.97,53.8979]
[1740768142949,0.14216157,147.03,146.97,55.8979]
[1740768143325,114.62,147.04,146.97,55.8979]
[1740768143530,114.62,147.04,146.98,2.0]
[1740768143836,114.62,147.04,146.97,53.8979]
[1740768144038,0.14216157,147.03,146.97,53.8979]
[1740768144747,55.20455723,147.03,146.95,0.063]
[1740768145062,0.14216157,147.01,146.95,0.063]
[1740768145558,55.06239566,147.0,146.95,0.063]
[1740768145859,0.14216157,146.98,146.95,0.063]
[1740768147058,55.06239566,146.99,146.95,0.063]
[1740768147553,55.06239566,146.99,146.97,0.063]
[1740768147942,0.14216157,146.98,146.97,0.063]
[1740768148454,55.06239566,146.99,146.97,0.063]
[1740768150837,0.14216157,146.98,146.97,0.063]
[1740768151936,10.0522537,146.98,146.95,0.063]
[1740768152668,12.0522537,146.98,146.95,0.063]
[1740768153252,0.14216157,146.96,146.95,0.063]
[1740768153459,5.39336444,146.96,146.87,0.063]
[1740768153765,0.14216157,146.94,146.87,0.063]
[1740768153971,0.14216157,146.92,146.87,0.063]
[1740768154559,1.68936157,146.92,146.87,0.063]
[1740768154862,3.68936157,146.92,146.87,0.063]
[1740768155170,1.68936157,146.92,146.87,0.063]
[1740768155469,0.14216157,146.9,146.87,0.063]
[1740768156272,80.84216157,146.9,146.87,0.063]
[1740768156643,82.2472,146.92,146.87,0.063]
[1740768157145,80.7,146.92,146.87,0.063]
[1740768157344,0.14216157,146.91,146.87,0.063]
[1740768157545,80.7,146.92,146.87,2.063]
[1740768157754,114.68,146.93,146.88,2.0]
[1740768157946,114.68,146.93,146.87,55.9609]
[1740768158871,0.14216157,146.92,146.87,55.9609]
[1740768159169,114.68,146.93,146.87,55.9609]
[1740768159375,114.68,146.93,146.89,2.0]
[1740768159552,114.68,146.93,146.88,2.0]
[1740768160162,0.14216157,146.92,146.88,2.0]
[1740768160373,0.14216157,146.92,146.87,55.9609]
[1740768160667,0.14216157,146.92,146.88,2.0]
[1740768160872,114.68,146.93,146.88,2.0]
[1740768161069,114.68,146.93,146.89,2.0]
[1740768161266,114.68,146.93,146.9,2.0]
[1740768162278,7.1,146.97,146.91,2.0]
[1740768162449,80.7,147.0,146.94,2.0]
[1740768162774,114.7,147.02,146.95,2.0]
[1740768162982,0.14216157,147.01,146.96,2.0]
[1740768163186,0.14216157,147.01,146.95,2.0]
[1740768163365,114.7,147.02,146.96,2.0]
[1740768163758,114.7,147.02,146.94,83.0]
[1740768163958,114.7,147.02,146.96,2.0]
[1740768164478,0.14216157,147.01,146.96,2.0]
[1740768164671,0.14216157,147.01,146.95,2.0]
[1740768164847,0.14216157,147.01,146.96,2.0]
[1740768165472,114.7,147.02,146.98,2.0]
[1740768165662,114.7,147.02,146.99,2.0]
[1740768166665,114.7,147.02,146.96,81.0]
[1740768166666,114.7,147.02,146.98,2.0]
[1740768168277,114.7,147.02,146.99,2.0]
[1740768168478,0.14216157,147.03,147.0,2.0]
[1740768168778,0.14216157,147.05,147.0,2.0]
[1740768168974,80.7,147.06,147.0,2.0]
[1740768169176,0.14216157,147.05,146.98,2.0]
[1740768169389,80.84216157,147.05,146.98,2.0]
[1740768170488,80.84216157,147.05,146.99,2.0]
[1740768170790,80.84216157,147.05,147.0,2.0]
[1740768171291,80.84216157,147.05,146.99,2.0]
[1740768171490,80.84216157,147.05,146.97,2.0]
[1740768171694,80.84216157,147.05,146.96,2.0]
[1740768171873,0.14216157,147.03,146.97,0.03]
[1740768172069,0.14216157,147.01,146.97,0.03]
[1740768172274,80.7,147.0,146.97,0.03]
[1740768174169,0.14216157,146.95,146.88,82.53]
[1740768174371,0.14216157,146.93,146.87,0.063]
[1740768174597,80.84216157,146.93,146.87,0.063]
[1740768175093,80.7,146.92,146.87,0.063]
[1740768175600,0.14216157,146.91,146.87,1.593]
[1740768175800,0.14216157,146.91,146.87,0.063]
[1740768176096,80.84216157,146.91,146.87,0.063]
[1740768176985,6.98,146.95,146.87,1.593]
[1740768177292,0.14216157,146.95,146.91,1.53]
[1740768177473,80.7,146.98,146.91,1.53]
[1740768177673,80.7,146.98,146.92,1.53]
[1740768177874,121.64,146.99,146.93,1.53]
[1740768178187,121.64,146.99,146.94,1.53]
[1740768178188,0.14216157,146.98,146.94,1.53]
[1740768178881,0.14216157,146.98,146.93,1.53]
[1740768179191,0.14216157,146.98,146.92,81.0]
[1740768180678,0.14216157,146.96,146.89,1.53]
[1740768180878,0.14216157,146.98,146.87,0.063]
[1740768180879,0.14216157,146.94,146.87,0.063]
[1740768181075,0.14216157,146.92,146.87,0.063]
[1740768181286,80.84216157,146.92,146.87,0.063]
[1740768182076,80.84216157,146.92,146.87,1.593]
[1740768182281,80.84216157,146.92,146.87,0.063]
[1740768182577,80.84216157,146.92,146.87,1.593]
[1740768183194,87.66,146.97,146.9,1.53]
[1740768183596,0.14216157,146.96,146.88,1.53]
[1740768183796,80.84216157,146.96,146.87,0.063]
[1740768183984,0.14216157,146.94,146.87,0.063]
[1740768184172,0.14216157,146.92,146.87,0.063]
[1740768184498,80.7,146.91,146.87,0.063]
[1740768185084,0.14216157,146.9,146.87,0.063]
[1740768186899,0.14216157,146.9,146.87,1.593]
[1740768187206,0.14216157,146.92,146.87,1.593]
[1740768187400,80.7,146.93,146.89,1.53]
[1740768187586,6.0641,146.97,146.89,1.53]
[1740768187587,86.7641,146.97,146.89,1.53]
[1740768187786,80.7,146.96,146.9,1.53]
[1740768187989,0.14216157,146.95,146.9,1.53]
[1740768188194,80.7,146.96,146.9,1.53]
[1740768188504,0.14216157,146.95,146.9,1.53]
[1740768188704,0.14216157,146.95,146.89,1.53]
[1740768189116,0.14216157,146.95,146.88,1.53]
[1740768189415,0.14216157,146.95,146.87,82.593]
[1740768189587,0.14216157,146.95,146.88,1.53]
[1740768189979,0.14216157,146.95,146.87,82.593]
[1740768190385,0.14216157,146.93,146.88,1.53]
[1740768190598,80.84216157,146.93,146.88,1.53]
[1740768191216,80.7,146.96,146.88,81.0]
[1740768191398,80.7,146.95,146.89,1.53]
[1740768191601,0.14216157,146.94,146.89,1.53]
[1740768191813,13.0241,146.97,146.9,1.53]
[1740768192012,6.0641,146.97,146.91,1.53]
[1740768192320,0.14216157,146.96,146.91,1.53]
[1740768192816,80.7,146.97,146.93,1.53]
[1740768193118,114.66,146.99,146.94,1.53]
[1740768193305,0.14216157,146.98,146.94,1.53]
[1740768193621,0.14216157,146.98,146.93,1.53]
[1740768193825,114.66,146.99,146.93,1.53]
[1740768194013,114.66,146.99,146.94,1.53]
[1740768194325,0.14216157,146.98,146.94,1.53]
[1740768196621,0.14216157,146.98,146.93,1.53]
[1740768196798,0.14216157,146.98,146.91,1.53]
[1740768196999,80.84216157,146.98,146.92,1.53]
[1740768197232,80.84216157,146.98,146.91,1.53]
[1740768197730,80.84216157,146.98,146.91,1.56]
[1740768198027,80.90516157,146.98,146.91,0.03]
[1740768198397,0.14216157,146.96,146.91,0.03]
[1740768198727,0.14216157,146.94,146.91,0.03]
[1740768198893,80.7,146.93,146.91,0.03]
[1740768199812,0.14216157,146.92,146.91,0.03]
[1740768202116,80.7,146.93,146.91,0.03]
[1740768202308,6.96,146.95,146.91,0.03]
[1740768202514,0.14216157,146.94,146.91,0.03]
[1740768204223,80.84216157,146.94,146.91,0.03]
[1740768204913,80.7,146.93,146.91,0.03]
[1740768205114,80.84216157,146.92,146.91,0.03]
[1740768208106,0.14216157,146.94,146.91,0.03]
[1740768208712,80.84216157,146.94,146.91,0.03]
[1740768209830,6.96,146.95,146.92,1.53]
[1740768210024,80.7,146.97,146.94,1.53]
[1740768210207,0.063,146.98,146.94,1.53]
[1740768210416,0.20516157,146.98,146.94,1.53]
[1740768210930,0.20516157,146.98,146.92,1.53]
[1740768211229,0.20516157,146.98,146.93,1.53]
[1740768211429,0.20516157,146.98,146.94,1.53]
[1740768211925,0.20516157,146.98,146.92,1.53]
[1740768212129,0.20516157,146.98,146.93,1.53]
[1740768212421,0.14216157,146.96,146.92,1.53]
[1740768213531,0.14216157,146.96,146.91,7.6789]
[1740768213713,80.84216157,146.96,146.91,1.56]
[1740768214033,0.14216157,146.94,146.91,0.03]
[1740768215001,0.14216157,146.92,146.91,0.03]
[1740768216705,3.5481537,146.92,146.91,0.03]
[1740768216902,5.5481537,146.92,146.91,0.03]
[1740768217922,0.61216157,146.9,146.87,0.063]
[1740768218129,0.14216157,146.88,146.87,0.063]
[1740768218313,114.86216157,146.88,146.87,0.063]
[1740768221035,114.72,146.88,146.87,0.063]
[1740768221422,114.86216157,146.88,146.87,0.063]
[1740768226733,0.14216157,146.87,146.85,0.063]
[1740768226949,4.18520823,146.87,146.85,0.063]
[1740768227247,8.34646157,146.86,146.85,0.063]
[1740768227435,8.34646157,146.86,146.8,0.063]
[1740768227436,2.14216157,146.85,146.8,0.063]
[1740768227638,0.14216157,146.83,146.8,0.063]
[1740768227828,0.14216157,146.81,146.8,0.063]
[1740768228237,0.14216157,146.81,146.78,0.03]
[1740768229543,0.14216157,146.79,146.78,0.03]
[1740768230137,0.14216157,146.8,146.78,0.03]
[1740768230947,6.5736,146.79,146.78,0.03]
[1740768231144,6.71576157,146.79,146.78,0.03]
[1740768231453,0.14216157,146.79,146.78,0.03]
[1740768233845,0.14216157,146.78,146.76,0.03]
[1740768234161,121.90216157,146.77,146.76,0.03]
[1740768236561,0.14216157,146.76,146.75,0.03]
[1740768238032,0.14216157,146.76,146.72,0.03]
[1740768239160,2.14216157,146.76,146.72,0.03]
[1740768239559,0.14216157,146.74,146.72,0.03]
[1740768239848,8.24816157,146.74,146.69,0.063]
[1740768240026,2.61216157,146.72,146.69,0.063]
[1740768240234,2.61216157,146.7,146.65,0.063]
[1740768240441,0.14216157,146.7,146.65,0.063]
[1740768240655,0.14216157,146.68,146.65,0.063]
[1740768240856,80.84216157,146.68,146.65,0.063]
[1740768241049,80.84216157,146.68,146.65,1.593]
[1740768241459,80.7,146.7,146.67,1.53]
[1740768241634,0.14216157,146.69,146.67,1.53]
[1740768242050,0.14216157,146.69,146.66,1.53]
[1740768242644,0.14216157,146.69,146.67,1.53]
[1740768242858,0.14216157,146.69,146.68,1.53]
[1740768243056,6.96,146.71,146.7,1.53]
[1740768243283,80.7,146.75,146.7,1.53]
[1740768243449,80.7,146.74,146.71,1.53]
[1740768243632,6.96,146.75,146.74,1.53]
[1740768243837,114.8,146.77,146.74,1.53]
[1740768244052,0.14216157,146.76,146.74,1.53]
[1740768244250,114.8,146.77,146.75,1.53]
[1740768244485,80.7,146.82,146.78,1.53]
[1740768245065,121.82,146.85,146.8,1.53]
[1740768245241,121.82,146.85,146.82,1.53]
[1740768245943,114.86,146.85,146.83,1.53]
[1740768246470,114.86,146.85,146.84,1.53]
[1740768247772,0.063,146.88,146.87,1.53]
[1740768248675,80.763,146.98,146.93,1.53]
[1740768248852,0.14216157,146.97,146.93,1.53]
[1740768249053,80.763,146.98,146.91,1.53]
[1740768249265,80.7,146.97,146.89,1.53]
[1740768249452,0.14216157,146.96,146.91,1.53]
[1740768249955,80.7,146.97,146.9,1.53]
[1740768250157,80.7,146.97,146.89,1.53]
[1740768250336,0.14216157,146.96,146.89,1.53]
[1740768251654,0.14216157,146.96,146.9,1.53]
[1740768251852,0.14216157,146.96,146.89,1.53]
[1740768252057,0.14216157,146.96,146.9,1.53]
[1740768252250,0.14216157,146.96,146.91,1.53]
[1740768252671,80.7,146.97,146.91,1.53]
[1740768252877,0.14216157,146.96,146.9,1.53]
[1740768253055,0.14216157,146.96,146.91,1.53]
[1740768253237,80.84216157,146.96,146.91,1.53]
[1740768253438,80.84216157,146.96,146.9,1.53]
[1740768253643,80.84216157,146.96,146.91,1.53]
[1740768253943,80.7,146.96,146.92,1.53]
[1740768254249,0.14216157,146.95,146.92,1.53]
[1740768254552,80.7,146.96,146.92,1.53]
[1740768254748,0.14216157,146.95,146.92,1.53]
[1740768254958,0.14216157,146.95,146.9,1.53]
[1740768255792,0.14216157,146.95,146.89,1.53]
[1740768255956,0.14216157,146.93,146.86,1.53]
[1740768256275,0.14216157,146.91,146.86,1.53]
[1740768256478,7.08216157,146.91,146.86,1.53]
[1740768256669,87.78216157,146.91,146.86,1.53]
[1740768257658,80.7,146.9,146.85,1.53]
[1740768258369,0.14216157,146.89,146.86,1.53]
[1740768259175,80.7,146.95,146.89,1.53]
[1740768259355,0.14216157,146.93,146.89,1.53]
[1740768259558,80.84216157,146.93,146.89,1.53]
[1740768260163,80.7,146.93,146.9,1.53]
[1740768261291,80.7,146.93,146.91,1.53]
[1740768261965,0.14216157,146.92,146.9,1.53]
[1740768263054,0.14216157,146.92,146.89,1.53]
[1740768263276,0.14216157,146.9,146.89,1.53]
[1740768263461,0.14216157,146.9,146.88,1.53]
[1740768263884,0.14216157,146.88,146.85,1.53]
[1740768264080,0.14216157,146.88,146.84,1.53]
[1740768264291,0.14216157,146.88,146.86,1.53]
[1740768264464,87.64,146.89,146.87,1.53]
[1740768266352,0.14216157,146.88,146.86,1.53]
[1740768266876,0.14216157,146.88,146.85,1.53]
[1740768267081,80.84216157,146.88,146.85,1.53]
[1740768267475,87.78216157,146.88,146.85,1.53]
[1740768267986,87.78216157,146.88,146.85,1.56]
[1740768268487,87.78216157,146.88,146.86,1.53]
[1740768268862,87.78216157,146.88,146.87,1.53]
[1740768269064,80.7,146.91,146.88,1.53]
[1740768269382,0.14216157,146.9,146.89,1.53]
[1740768270086,80.7,146.91,146.89,1.53]
[1740768270467,114.74,146.92,146.9,1.53]
[1740768270671,114.74,146.92,146.91,1.53]
[1740768271460,80.763,146.95,146.94,1.53]
[1740768271670,0.063,146.95,146.94,1.53]
[1740768273389,0.063,146.95,146.93,1.53]
[1740768274692,0.14216157,146.93,146.91,1.53]
[1740768275101,0.14216157,146.93,146.9,1.53]
[1740768276996,0.14216157,146.93,146.92,1.53]
[1740768277194,80.84216157,146.94,146.93,1.53]
[1740768278564,0.14216157,146.93,146.91,1.53]
[1740768278763,0.14216157,146.93,146.9,1.53]
[1740768278991,0.14216157,146.93,146.91,1.53]
[1740768279187,0.14216157,146.93,146.9,1.53]
[1740768280490,80.84216157,146.93,146.9,1.53]
[1740768280990,80.84216157,146.93,146.91,1.53]
[1740768281774,0.063,146.95,146.94,1.53]
[1740768286898,0.14216157,146.94,146.9,1.53]
[1740768287599,0.14216157,146.94,146.91,1.53]
[1740768287792,0.14216157,146.94,146.9,1.53]
[1740768287968,0.14216157,146.94,146.88,82.56]
[1740768288290,0.14216157,146.92,146.88,1.56]
[1740768288502,0.14216157,146.92,146.89,1.53]
[1740768288690,0.14216157,146.92,146.91,1.53]
[1740768289998,0.063,146.95,146.93,1.53]
[1740768290372,0.20516157,146.95,146.93,1.53]
[1740768290994,0.063,146.92,146.88,1.56]
[1740768291297,80.763,146.92,146.88,0.03]
[1740768292083,80.84216157,146.91,146.88,0.03]
[1740768292489,80.7,146.9,146.88,0.03]
[1740768292695,80.84216157,146.89,146.88,0.03]
[1740768292889,0.14216157,146.89,146.88,0.03]
[1740768293198,0.14216157,146.89,146.85,0.03]
[1740768294196,4.18501694,146.89,146.85,0.03]
[1740768294574,4.65501694,146.89,146.85,0.03]
[1740768294772,6.29066157,146.86,146.85,0.03]
[1740768295475,0.14216157,146.85,146.78,1.53]
[1740768295696,0.14216157,146.83,146.79,1.53]
[1740768296081,0.14216157,146.83,146.76,1.53]
[1740768296685,0.14216157,146.83,146.73,1.56]
[1740768296887,0.14216157,146.83,146.76,1.53]
[1740768297284,0.14216157,146.81,146.76,1.53]
[1740768297475,0.14216157,146.81,146.73,1.56]
[1740768297682,0.14216157,146.79,146.73,1.56]
[1740768297877,6.94,146.78,146.73,1.56]
[1740768298102,87.64,146.78,146.75,1.53]
[1740768299498,87.64,146.78,146.73,1.56]
[1740768299697,87.64,146.78,146.74,1.53]
[1740768299909,87.64,146.78,146.73,1.56]
[1740768300195,80.84216157,146.77,146.73,1.56]
[1740768300412,0.14216157,146.75,146.73,0.03]
[1740768300578,0.14216157,146.75,146.73,1.56]
[1740768300985,0.14216157,146.75,146.73,0.03]
[1740768301393,0.14216157,146.75,146.73,1.56]
[1740768301586,80.7,146.76,146.73,1.56]
[1740768301785,80.7,146.76,146.75,1.53]
[1740768302210,87.64,146.8,146.76,1.53]
[1740768302429,80.7,146.79,146.73,1.56]
[1740768302722,0.14216157,146.77,146.74,1.53]
[1740768302889,0.14216157,146.77,146.75,1.53]
[1740768303219,0.14216157,146.77,146.73,0.03]
[1740768303394,0.14216157,146.75,146.73,0.03]
[1740768303725,87.78216157,146.74,146.73,0.03]
[1740768304304,87.64,146.78,146.75,1.53]
[1740768304814,6.94,146.78,146.75,1.53]
[1740768305122,6.94,146.78,146.73,0.03]
[1740768305123,80.84216157,146.77,146.73,1.56]
[1740768305300,80.84216157,146.77,146.73,0.03]
[1740768305488,0.14216157,146.75,146.73,0.03]
[1740768305813,88.70186157,146.74,146.73,0.03]
[1740768307522,0.14216157,146.73,146.72,0.03]
[1740768309224,80.7,146.73,146.72,0.03]
[1740768309423,87.64,146.73,146.72,0.03]
[1740768309624,7.08216157,146.73,146.72,0.03]
[1740768309830,0.14216157,146.72,146.7,0.03]
[1740768310126,114.98216157,146.71,146.7,0.03]
[1740768310455,119.02501694,146.71,146.7,0.03]
[1740768312070,119.02501694,146.71,146.7,1.56]
[1740768312255,114.84,146.71,146.7,1.56]
[1740768312937,114.98216157,146.71,146.7,1.56]
[1740768313445,114.84,146.71,146.7,1.56]
[1740768313754,6.94,146.77,146.74,1.53]
[1740768313925,80.7,146.78,146.77,1.53]
[1740768314127,6.94,146.84,146.78,1.53]
[1740768314360,80.7,146.83,146.82,1.53]
[1740768314529,80.84216157,146.83,146.82,1.53]
[1740768314728,2.0,146.84,146.78,6.4867]
[1740768314929,114.86,146.87,146.78,81.07978178]
[1740768315150,114.86,146.87,146.78,88.01978178]
[1740768315358,118.86,146.87,146.78,88.01978178]
[1740768315555,2.0,146.86,146.78,88.01978178]
[1740768315859,0.14216157,146.85,146.78,86.5895]
[1740768316045,2.0,146.86,146.78,86.5895]
[1740768316240,2.20516157,146.85,146.78,86.5895]
[1740768316444,2.14216157,146.82,146.78,79.6495]
[1740768316759,0.14216157,146.82,146.78,6.4867]
[1740768316969,0.14216157,146.83,146.78,6.4867]
[1740768317133,2.14216157,146.83,146.78,6.4867]
[1740768317337,0.14216157,146.83,146.78,6.4867]
[1740768317550,2.14216157,146.83,146.78,6.4867]
[1740768317758,2.14216157,146.84,146.78,6.4867]
[1740768318060,4.0,146.84,146.78,6.4867]
[1740768318234,4.063,146.85,146.78,6.4867]
[1740768318440,0.063,146.85,146.78,6.4867]
[1740768319033,0.063,146.85,146.78,217.6495]
[1740768319235,0.063,146.85,146.79,1.42995792]
[1740768319849,0.063,146.85,146.79,212.59275792]
[1740768320050,0.063,146.85,146.79,211.1628]
[1740768320951,0.063,146.85,146.8,6.94]
[1740768321143,0.063,146.85,146.8,8.36979175]
[1740768321343,0.063,146.85,146.8,6.94]
[1740768321764,0.063,146.85,146.79,73.1628]
[1740768321765,4.14216157,146.82,146.79,73.1628]
[1740768322066,4.14216157,146.82,146.75,80.1028]
[1740768322361,2.14216157,146.8,146.75,73.1628]
[1740768322568,2.0,146.78,146.75,73.1628]
[1740768322745,2.0,146.78,146.74,6.1956]
[1740768323861,0.14216157,146.77,146.74,6.1956]
[1740768324046,0.14216157,146.77,146.7,0.03]
[1740768324047,2.14216157,146.75,146.7,0.03]
[1740768324252,0.14216157,146.73,146.7,0.03]
[1740768324466,2.14216157,146.73,146.7,0.03]
[1740768324761,0.14216157,146.71,146.7,0.03]
[1740768325066,4.14216157,146.71,146.7,0.03]
[1740768325245,2.14216157,146.71,146.7,0.03]
[1740768325563,4.14216157,146.71,146.7,0.03]